Cogmind - Beta 16.1 @@@ ROGUE MODE // 2026.02.12 @ 14:39:42 Player: TheSkyeDoctor Result: Destroyed by G-47 Trooper with Particle Gun Performance ------------- Evolutions (2) 1000 Regions Visited (5) 1000 Robots Destroyed (45) 225 Value Destroyed (1189) 1189 Prototype IDs (27) 540 Alien Tech Used (0) 0 Bonus (300) 300 TOTAL SCORE: 4254 Bonus ------- Aligned with FarCom 300 Cogmind --------- Core Integrity 0/550 Matter 238/300 Energy 93/100 System Corruption 9% Temperature Danger (442) Movement Core (150) Ox2 Location -8/Materials Parts ------- > --- POWER (1) -------- (None) > --- PROPULSION (4) --- (None) > --- UTILITY (4) ------ Propulsion Shielding > --- WEAPON (2) ------- Beam Cannon Rocket Launcher > --- INVENTORY (5) ---- Light Treads Light Treads Peak State ------------ > --- POWER ------------ Light Nuclear Core > --- PROPULSION ------- Light Treads Light Treads Light Treads Improved Treads > --- UTILITY ---------- Humpback High-capacity Battery High-capacity Matter Pod > --- WEAPON ----------- Gauss Rifle Mace > --- INVENTORY -------- Light Nuclear Core Light Nuclear Core Light Treads Wheel Advanced Weight Redist. System Seismic Detector Modified TNC Targeting Computer Improved Melee Analysis Suite Improved Melee Analysis Suite Transmission Jammer Propulsion Shielding Improved Propulsion Shielding Insulated Plating Beam Cannon Improved Datajack [Rating: 22] Favorites ----------- Power Ion Engine Engine Ion Engine Power Core Light Nuclear Core Propulsion Wheel Treads Light Treads Wheel Wheel Utility Humpback Device Seismic Detector Storage Humpback Protection Propulsion Shielding Weapon Assault Rifle Energy Cannon Beam Cannon Ballistic Gun Assault Rifle Launcher Rocket Launcher Impact Weapon Mace Piercing Weapon Spear Build | -11 -10 -10 -10 -9 -8 ------- Run | Yrd Mat Min Exi Min Mat Slots Evolved 4 | . . . . . 4 Power . | . . . . . . Propulsion 2 | . . . . . 2 Utility 2 | . . . . . 2 Weapon . | . . . . . . Parts Attached 41 | 9 1 . 1 . 30 Power 6 | 1 1 . . . 4 Engine 3 | 1 1 . . . 1 Core 3 | . . . . . 3 Reactor . | . . . . . . Propulsion 19 | 4 . . . . 15 Treads 6 | . . . . . 6 Leg . | . . . . . . Wheel 13 | 4 . . . . 9 Hover . | . . . . . . Flight . | . . . . . . Utility 7 | 2 . . 1 . 4 Device 1 | 1 . . . . . Storage 4 | 1 . . 1 . 2 Processor . | . . . . . . Hackware . | . . . . . . Protection 2 | . . . . . 2 Artifact . | . . . . . . Weapon 9 | 2 . . . . 7 Energy Gun . | . . . . . . Energy Cannon 1 | . . . . . 1 Ballistic Gun 4 | 2 . . . . 2 Ballistic Cannon . | . . . . . . Launcher 2 | . . . . . 2 Special Weapon . | . . . . . . Impact Weapon 1 | . . . . . 1 Slashing Weapon . | . . . . . . Piercing Weapon 1 | . . . . . 1 Special Melee Weapon . | . . . . . . Unidentified Prototypes 2 | . . . . . 2 Parts Lost 25 | . 1 . . . 24 Power 5 | . 1 . . . 4 Propulsion 10 | . . . . . 10 Utility 4 | . . . . . 4 Weapon 6 | . . . . . 6 Highest Loss Streak 11 | . 1 . . . 11 To Critical Strikes . | . . . . . . Average Backups 9 | 1 5 8 8 9 11 Power 1 | 1 1 2 1 1 1 Propulsion 2 | . 2 4 3 4 1 Utility 5 | . . 1 2 4 7 Weapon . | . . 1 . . . Tool/Special . | . . . . . . Unused Backups 12 | . . . 2 . 10 Power 2 | . . . 1 . 1 Propulsion . | . . . . . . Utility 8 | . . . . . 8 Weapon 1 | . . . 1 . . Tool/Special 1 | . . . . . 1 Average Slot Usage (%) 80 | . 100 100 91 85 72 Engine 6 | . 14 14 14 14 1 Core 4 | . . . . . 6 Treads 2 | . . . . . 3 Wheel 21 | . 28 28 28 28 16 Device 2 | . 14 14 6 . . Storage 21 | . 14 14 14 14 26 Ballistic Gun 16 | . 28 28 28 28 9 Impact Weapon 3 | . . . . . 5 Peak Build Rating 22 | 7 8 8 8 8 22 Average Rating 12 | 5 7 8 7 8 16 On Entrance 6 | . 7 8 8 8 8 Avg Prop Armor Cover (%) . | . . . . . . Naked Turns . | . . . . . . Heaviest Build 219 | 14 14 14 208 208 219 Greatest Support 83 | 32 20 20 20 20 83 Greatest Overweight (x) 21 | . . . 10 10 21 Average Overweight (x) 5 | . . . 3 10 9 Largest Inventory Capacity 35 | 8 8 8 35 35 35 Average Capacity 27 | 7 8 8 23 35 33 Most Carried 20 | 5 8 8 9 9 20 Average Carried 9 | 2 5 8 8 9 11 Final Capacity 35 | 8 8 8 35 35 5 Final Carried 9 | 3 8 8 9 9 2 Class Distribution -------------------- 74% | Hauler-Mutant 13% | Mutant 12% | Scavenger-Mutant Dominant Class ---------------- Mutant | -10/Materials Scavenger-Mutant | -10/Mines Hauler-Mutant | -10/Exiles Hauler-Mutant | -9/Mines Hauler-Mutant | -8/Materials Resources | -11 -10 -10 -10 -9 -8 ----------- Run | Yrd Mat Min Exi Min Mat Matter Collected 1374 | 358 104 . . . 912 Remotely . | . . . . . . Salvage Created 1499 | 200 159 . . . 1140 Parts 88 | 14 9 . . . 65 Haulers Intercepted . | . . . . . . Recyclers Shooed 2 | . . . . . 2 Parts Field Recycled . | . . . . . . Retrieved Matter . | . . . . . . Parts Self-Destructed . | . . . . . . Prevented . | . . . . . . Parts Restored . | . . . . . . Kills | -11 -10 -10 -10 -9 -8 ------- Run | Yrd Mat Min Exi Min Mat Combat Hostiles Destroyed 22 | . 4 . . . 18 Melee 4 | . . . . . 4 Guns 10 | . 4 . . . 6 Cannons 3 | . . . . . 3 AOE 4 | . . . . . 4 Classes Destroyed 9 | 3 1 . . . 5 Worker 8 | 1 . . . . 7 Builder 4 | . . . . . 4 Tunneler 5 | 5 . . . . . Recycler 2 | 1 . . . . 1 Watcher 4 | . . . . . 4 Grunt 11 | . 4 . . . 7 Brawler 1 | . . . . . 1 Sentry 5 | . . . . . 5 Hunter 5 | . . . . . 5 Best Kill Streak 14 | 3 2 . . . 14 Combat Bots Only 7 | . 2 . . . 7 Max Kills in Single Turn 3 | 1 1 . . . 3 Gunslinging . | . . . . . . Exploded 1 | . . . . . 1 Melee 1 | . . . . . 1 Uniques/NPCs Destroyed . | . . . . . . Combat | -11 -10 -10 -10 -9 -8 -------- Run | Yrd Mat Min Exi Min Mat Hostile Shots Fired 271 | . 28 . . . 243 Missed 80 | . 10 . . . 70 Hits 191 | . 18 . . . 173 Melee 2 | . . . . . 2 Projectile 189 | . 18 . . . 171 Critical Strikes 7 | . . . . . 7 Damage Taken 2779 | . 243 . . . 2536 Core 582 | . 30 . . . 552 Absorbed by Shields . | . . . . . . Redirected to Shielding 4 | . . . . . 4 Core Remaining (%) 94 | 100 . . . 88 . Volleys Fired 170 | 26 24 . . . 120 Largest 2 | 2 2 . . . 2 Hottest 93 | 40 40 . . . 93 Shots Fired 248 | 52 48 . . . 148 Gun 221 | 52 48 . . . 121 Cannon 15 | . . . . . 15 Launcher 12 | . . . . . 12 Special . | . . . . . . Kinetic 221 | 52 48 . . . 121 Thermal 15 | . . . . . 15 Explosive 12 | . . . . . 12 Electromagnetic . | . . . . . . Robot Hit Streak 14 | 6 4 . . . 14 Robot Miss Streak 4 | 4 4 . . . 4 Penetration Max 1 | . . . . . 1 Secondary Targets 3 | . 1 . . . 2 Max Gunslinging Chain 1 | . 1 . . . 1 Shots Hit Robots 165 | 25 24 . . . 116 Core Hits 86 | 13 10 . . . 63 Critical Kills 1 | . . . . . 1 Critical Parts Destroyed 4 | . . . . . 4 Critical Strikes 5 | . . . . . 5 Destroy 4 | . . . . . 4 Smash 1 | . . . . . 1 Melee Attacks 20 | . . . . . 20 Impact 5 | . . . . . 5 Slashing . | . . . . . . Piercing 15 | . . . . . 15 Sneak Attacks 1 | . . . . . 1 Combat Hostiles . | . . . . . . Follow-up Attacks . | . . . . . . Damage Inflicted 3571 | 269 284 . . . 3018 Guns 1984 | 269 284 . . . 1431 Cannons 230 | . . . . . 230 Explosions 845 | . . . . . 845 Melee 512 | . . . . . 512 Ramming . | . . . . . . Kinetic 1984 | 269 284 . . . 1431 Thermal 230 | . . . . . 230 Explosive 845 | . . . . . 845 Electromagnetic . | . . . . . . Impact 103 | . . . . . 103 Slashing . | . . . . . . Piercing 409 | . . . . . 409 Highest Corruption 9 | . . . . . 9 Average Corruption 9 | . . . . . 9 Corruption Purged . | . . . . . . Corruption Blocked . | . . . . . . Effects 46 | . . . . . 46 Message Errors 8 | . . . . . 8 Matter Fused 17 | . . . . . 17 Heat Flow Errors 7 | . . . . . 7 Energy Discharges 5 | . . . . . 5 Parts Rejected 2 | . . . . . 2 Data Loss (minor) 2 | . . . . . 2 Misfires 2 | . . . . . 2 Alerts 2 | . . . . . 2 Weapon Failures 1 | . . . . . 1 Overload Shots . | . . . . . . Overflow Damage 113 | . . . . . 113 Projectiles . | . . . . . . Explosions 61 | . . . . . 61 Melee 52 | . . . . . 52 Knockbacks . | . . . . . . Impact . | . . . . . . Kinetic . | . . . . . . Secondary . | . . . . . . Self-Inflicted Damage 27 | . . . . . 27 Shots 1 | . . . . . 1 Rammed . | . . . . . . Targets Rammed . | . . . . . . Kicked . | . . . . . . Crushed . | . . . . . . Highest Temperature 433 | . 24 . . . 433 Average Temperature 75 | . 11 . . . 84 Received Heat Transfer 1149 | . 132 . . . 1017 Siege Activations . | . . . . . . Martial Activations . | . . . . . . Shielding Activations . | . . . . . . Robots Disrupted . | . . . . . . Combat Hostiles . | . . . . . . Robots Corrupted 1 | . . . . . 1 Combat Hostiles 1 | . . . . . 1 Parts Fried 3 | . . . . . 3 Impact Corruptions 1 | . . . . . 1 Robots Melted . | . . . . . . Combat Hostiles . | . . . . . . Parts Melted . | . . . . . . Heat Transferred 481 | . . . . . 481 Parts Sabotaged . | . . . . . . Parts Stolen . | . . . . . . Parts Stripped . | . . . . . . Power Chain Reactions . | . . . . . . Alert | -11 -10 -10 -10 -9 -8 ------- Run | Yrd Mat Min Exi Min Mat Maximum Alert Level 1 | . . . . . 1 Low Security (%) 99 | 100 100 100 . 100 99 Level 1 . | . . . . . . Level 2 . | . . . . . . Level 3 . | . . . . . . Level 4 . | . . . . . . Level 5 . | . . . . . . High Security . | . . . . . . Max Security . | . . . . . . Peak Influence 225 | 10 70 19 . . 225 Initial 19 | . . 19 . . . Average 15 | 2 28 11 . . 18 Influence Increases 859 | 35 134 . . . 690 Destroy 0b10 Robot/C 440 | . 80 . . . 360 Destroy 0b10 Robot/NC 115 | 35 . . . . 80 Destroy Leader 158 | . 20 . . . 138 Successful Hack 4 | . 4 . . . . Destroy Structure 67 | . . . . . 67 Lose Combat Pursuer 75 | . 30 . . . 45 Influence Decreases 634 | 35 84 50 . . 465 Entered New Map 31 | . . 31 . . . Time Decay 433 | 35 74 19 . . 305 Lost Part 170 | . 10 . . . 160 Squads Dispatched 7 | . 1 . . . 6 Investigation 1 | . . . . . 1 Extermination . | . . . . . . Reinforcement 5 | . 1 . . . 4 Assault . | . . . . . . Garrison 1 | . . . . . 1 Intercept . | . . . . . . Searches Triggered . | . . . . . . Construction Impeded 1 | . . . . . 1 Haulers Reinforced . | . . . . . . Active Scanning Responses . | . . . . . . Cargo Convoy Interrupts . | . . . . . . Stealth | -11 -10 -10 -10 -9 -8 --------- Run | Yrd Mat Min Exi Min Mat Distress Signals 7 | . 2 . . . 5 Communications Jammed . | . . . . . . Distress Signals . | . . . . . . Times Spotted 44 | . 9 . . . 35 Peak Tracking Total 6 | . 5 . . . 6 Tactical Retreats 2 | . 1 . . . 1 Traps | -11 -10 -10 -10 -9 -8 ------- Run | Yrd Mat Min Exi Min Mat Traps Triggered 1 | . . . . . 1 Indirectly . | . . . . . . Trap Hack Attempts . | . . . . . . Triggered . | . . . . . . Disarmed . | . . . . . . Reprogrammed . | . . . . . . Reused . | . . . . . . Traps Extracted . | . . . . . . Installed . | . . . . . . Triggered . | . . . . . . Machines | -11 -10 -10 -10 -9 -8 ---------- Run | Yrd Mat Min Exi Min Mat Machines Disabled . | . . . . . . Max in Single Turn . | . . . . . . Machines Repaired . | . . . . . . Machines Dismantled . | . . . . . . Machines Sabotaged . | . . . . . . Overloaded Fab Kills . | . . . . . . Hacking | -11 -10 -10 -10 -9 -8 --------- Run | Yrd Mat Min Exi Min Mat Machines Accessed 6 | . 3 . 1 . 2 Terminals 4 | . 3 . . . 1 Fabricators . | . . . . . . Repair Stations . | . . . . . . Recycling Units . | . . . . . . Scanalyzers 1 | . . . . . 1 Garrison Access . | . . . . . . Total Hacks 12 | . 8 . 1 . 3 Successful 4 | . 2 . 1 . 1 Failed 8 | . 6 . . . 2 Catastrophic 2 | . 1 . . . 1 Database Lockouts . | . . . . . . Manual 4 | . 2 . 1 . 1 Terminals 9 | . 8 . . . 1 Fabricators . | . . . . . . Repair Stations . | . . . . . . Recycling Units . | . . . . . . Scanalyzers 2 | . . . . . 2 Garrison Access . | . . . . . . Terminal Hacks 3 | . 2 . 1 . . Prototype ID Bank 1 | . 1 . . . . Locate Traps 1 | . 1 . . . . Proto ID Catalog 1 | . . . 1 . . Fabricator Hacks . | . . . . . . Repair Station Hacks . | . . . . . . Recycling Unit Hacks . | . . . . . . Scanalyzer 1 | . . . . . 1 Retrieve Study 1 | . . . . . 1 Garrison Access Hacks . | . . . . . . Unauthorized Hacks . | . . . . . . Terminals . | . . . . . . Fabricators . | . . . . . . Repair Stations . | . . . . . . Recycling Units . | . . . . . . Scanalyzers . | . . . . . . Garrison Access . | . . . . . . Data Cores Recovered . | . . . . . . Used . | . . . . . . Hacking Detections 5 | . 3 . . . 2 Full Trace Events . | . . . . . . Feedback Events . | . . . . . . Feedback Blocked . | . . . . . . Robot Schematics Acquired . | . . . . . . Robots Built . | . . . . . . Authchips . | . . . . . . Time . | . . . . . . Total Robot Build Rating . | . . . . . . Part Schematics Acquired . | . . . . . . Parts Built . | . . . . . . Authchips . | . . . . . . Time . | . . . . . . Total Part Build Rating . | . . . . . . Part Studies Acquired 1 | . . . . . 1 Parts Repaired . | . . . . . . Time . | . . . . . . Parts Recycled . | . . . . . . Recycled Matter . | . . . . . . Retrieved Matter . | . . . . . . Retrieved Components . | . . . . . . Parts Scanalyzed . | . . . . . . Part Schematics Acquired . | . . . . . . Parts Damaged . | . . . . . . Bothacking | -11 -10 -10 -10 -9 -8 ------------ Run | Yrd Mat Min Exi Min Mat Used RIF Installer . | . . . . . . Robots Hacked . | . . . . . . Non-combat . | . . . . . . Combat . | . . . . . . Robot Hacks Applied . | . . . . . . Relay Couplers Released . | . . . . . . Fabnet Peak Effective % . | . . . . . . Robots Rewired . | . . . . . . Allies Hacked . | . . . . . . Hacks Repelled . | . . . . . . Allies | -11 -10 -10 -10 -9 -8 -------- Run | Yrd Mat Min Exi Min Mat Total Allies . | . . . . . . Largest Group . | . . . . . . Highest-Rated Group . | . . . . . . Highest-Rated Ally . | . . . . . . Total Orders . | . . . . . . Ally Attacks . | . . . . . . Total Damage . | . . . . . . Kills . | . . . . . . Allies Corrupted . | . . . . . . Allies Melted . | . . . . . . Intel | -11 -10 -10 -10 -9 -8 ------- Run | Yrd Mat Min Exi Min Mat Active Infowar (turns) 577 | 55 221 48 253 . . Seismic 577 | 55 221 48 253 . . Robot Analysis Total . | . . . . . . Derelict Logs Recovered . | . . . . . . Drone Launches . | . . . . . . Drone Recoveries . | . . . . . . Exploration | -11 -10 -10 -10 -9 -8 ------------- Run | Yrd Mat Min Exi Min Mat Turns Passed 3174 | 207 221 48 575 334 1789 Spaces Moved 1368 | 124 173 60 452 126 433 Core 19 | 18 . . . . 1 Treads 51 | . . . . . 51 Legs . | . . . . . . Wheels 1298 | 106 173 60 452 126 381 Hover . | . . . . . . Flight . | . . . . . . Fastest Speed 50 | 50 80 80 80 230 80 Average Speed 163 | 86 80 80 125 230 249 Slowest Speed 960 | 100 80 80 230 230 960 Overloaded Moves . | . . . . . . Propulsion Burnouts . | . . . . . . Robots Hopped . | . . . . . . Potential Cave-ins . | . . . . . . Cave-ins Triggered . | . . . . . . Exploration Rate (%) 30 | 4 21 12 86 28 34 Regions Visited 5 Branch Regions 3 Pre-discovered Areas . | . . . . . . Known Exits Taken . | . . . . . . Unknown Exits Taken 5 | 1 1 1 1 1 . Scrap Searched . | . . . . . . Spaces Dug . | . . . . . . Terrain Destroyed 83 | . . . . . 83 Melee . | . . . . . . Projectile . | . . . . . . AOE 83 | . . . . . 83 Terrain Rammed . | . . . . . . Walls Destroyed . | . . . . . . Machines Disabled . | . . . . . . Actions | -11 -10 -10 -10 -9 -8 --------- Run | Yrd Mat Min Exi Min Mat Total 2060 | 175 212 59 460 171 983 Wait 396 | 5 9 . . 46 336 Move 1363 | 123 172 59 451 125 433 Hop . | . . . . . . Pick Up 54 | 10 6 . 5 . 33 Fast Attach 5 | 2 . . 1 . 2 Attach 33 | 5 1 . . . 27 Detach 2 | . . . . . 2 Swap 8 | 2 . . . . 6 Drop 9 | 2 . . 3 . 4 Fire 170 | 26 24 . . . 120 Melee 20 | . . . . . 20 Ram . | . . . . . . Kick . | . . . . . . Crush . | . . . . . . Escape Stasis . | . . . . . . Rewire . | . . . . . . Trap . | . . . . . . Miscellaneous . | . . . . . . Route ------- -11/Scrapyard -10/Materials -10/Mines -10/Exiles -9/Mines -8/Materials History --------- Turn | Location | Event 18 | -11/Scrapyard | Discovered new exit (range 15) 208 | -11/Scrapyard | Entered Materials 273 | -10/Materials | Discovered new exit (range 12) 312 | -10/Materials | Build established: Mutant 429 | -10/Materials | Entered Mines 430 | -10/Mines | Assembled infested the area 474 | -10/Mines | Discovered new exit (range 5) 477 | -10/Mines | Entered Exiles 497 | -10/Exiles | Met 8R-AWN 511 | -10/Exiles | Met EX-HEX 535 | -10/Exiles | Met EX-BIN 544 | -10/Exiles | Aligned with FarCom system 545 | -10/Exiles | Given EX-Vault access code 564 | -10/Exiles | Opened EX-Vault 571 | -10/Exiles | Found Modified TNC 589 | -10/Exiles | Warned to stay clear of 0b10 Research branches 617 | -10/Exiles | Met EX-DEC 644 | -10/Exiles | Visited The Gauntlet 686 | -10/Exiles | Build established: Scavenger-Mutant 1022 | -10/Exiles | Discovered new exit (range 14) 1037 | -10/Exiles | Build established: Hauler-Mutant 1052 | -10/Exiles | Left Exiles lab with Modified TNC 1052 | -10/Exiles | Entered Mines 1053 | -9/Mines | Met a Derelict bent on vengeance 1368 | -9/Mines | Discovered new exit (range 8) 1386 | -9/Mines | Entered Materials 1386 | -8/Materials | Evolved 4 slots: Propulsion x2, Utility x2 1759 | -8/Materials | Lost 7 parts (1p5n1w) 1888 | -8/Materials | Lost 3 parts (1p1n1w) 3092 | -8/Materials | Garrison activated, responded to threat 3115 | -8/Materials | Core integrity fell below 50% 3143 | -8/Materials | Core integrity fell below 20% 3175 | -8/Materials | Destroyed by G-47 Trooper with Particle Gun Last Messages --------------- The unstable cave ceiling collapses. U-05 Engineer lays Concrete. K-01 Serf collects debris. The unstable cave ceiling collapses. G-47 Trooper crushed by falling debris. U-05 Engineer lays Concrete. Hcp. Battery destroyed. U-05 Engineer builds a Wall. U-05 Engineer lays Concrete. System corrupted: Heat flow error (+279). H-55 Commando destroyed. K-01 Serf collects debris. U-05 Engineer lays Concrete. Destroyed Lgt. Nuclear Core. G-47 Trooper destroyed. U-05 Engineer lays Concrete. K-01 Serf collects debris. U-05 Engineer lays Concrete. U-05 Engineer builds a Wall. U-05 Engineer lays Concrete. Map ----- +----------------------------------------------------+ | ?????# #???????????????????????????????????????? | | ?????# #???????????????????????????????????????? | | ?????# #???????????????????????????????????????? | | ?????# #???????????????????????????????????????? | | ?????# #???????????????????????????????????????? | | ?????# ########????????????????????????????????? | | ###### # #????????????????????????????????? | | # # #????????????????????????????????? | | """ # # #??###???????????????????????????? | | """ # / #?? ???????????????????????????? | | """ # # #?? ???????????????????????????? | | + # [ #?? ???????????????????????????? | | """ # ########? ???????????????????????????? | | """ # T#??????# ???????????????????????????? | | """ # ##??????# ???????????????????????????? | | # #???????#! ""?????????????????????????? | | ###### #??????## ""??????#??????????????????? | | ?????# #??????# ????? #??????????????????? | | ?????# #??????## #???? #??????????????????? | | ????## ##????## ??? #??????????????????? | | ????# !#????# ??? #??????????????????? | | ????# #????# ! #? #??????????????????? | | ????# T ###### g [ T## #??????????????????? | | ????# =!%% ! =]! #??????????????????? | | ????# ###### = =%=k #??????????????????? | | ????# ##????# u@]* #??????????????????? | | ????# #?????# #??????????????????? | | ????#]]!!!!#?????#! ???????????????? | | ????#]]!!!!#????### * #?????????????? | | ????########?? #u[ =%% #?????????????? | | ????????????# #=%! %![ ### ????????????? | | ????????????# ] *[ =% ???????????? | | ????????????# =l * == ???????????? | | ????????????# # * % ???????????? | | ????????????# #g ######+# [= ???????????? | | ?????????????#+# g ????? !* =%! ????????????? | | ????????????? ? ! ?????""?""" ????????????? | | ??????????????? #????"" ?? ??????????????? | | ????????????????? ! #?????????????????????????? | | ?????????????????? #?????????????????????????? | | ??????????????????######?????????????????????????? | | ?????????????????????????????????????????????????? | | ?????????????????????????????????????????????????? | | ?????????????????????????????????????????????????? | | ?????????????????????????????????????????????????? | | ?????????????????????????????????????????????????? | | ?????????????????????????????????????????????????? | | ?????????????????????????????????????????????????? | | ?????????????????????????????????????????????????? | | ?????????????????????????????????????????????????? | +----------------------------------------------------+ Best States ------------- Heat Dissipation 31 Energy Generation 14 Energy Capacity 500 Matter Stores 500 Matter Capacity 500 Sight Range 16 Terrain Scan Density 10 Armor Coverage 150 Resistance: EM 15 Propulsion Shielding 33 Evasion (%) 50 Recoil Reduction 4 Item Schematics ----------------- None Robot Schematics ------------------ None Fabricated ------------ Nothing Repaired ---------- Nothing Studied --------- Lgt. Treads | -8/Materials | Hacked Alien Tech Used ----------------- None Achievements -------------- Tank Challenges ------------ None Game ------ Seed NeutrinoBombardmentSpear Manual? 0 Play Time 00:24:25 Cumulative 18.2 hours Start 2026.02.12 @ 14:15:36 End 2026.02.12 @ 14:39:42 Sessions 1 Manual Loads 0 Difficulty Rogue Special Mode None Game No. 43 Rogue 43 Adventurer 0 Explorer 0 Win Type - Total 0 Types 0/0/0/0/0/0/0/0/0/0 Lore% 17 Gallery% 23 Achievement% 19 Wizard Run 0 Options --------- Layout 1 ASCII 0 Keyboard 0 Movement Mouse Keybinds 0 Fullscreen 1 Font 24/Smallcaps Map View 50x35 Zoom Use 0% Tactical HUD 0 Map Filters NONE Filters NONE Steam 1 RUN: 2f374c4a-e97d-4563-9dad-b7b11747b501